lending/lending_fUSD_20260211
["ID","MTS","AMOUNT","RATE_DAILY","PERIOD"]
[405082368,1770768338746,-233.85576869,0.00013698,2]
[405082369,1770768338892,-170.24872889,0.00013698,2]
[405082370,1770768338919,-264.0,0.00013875,2]
[405082376,1770768440407,287.22994653,0.00010087,2]
[405082377,1770768440431,711.41005347,0.00010087,2]
[405082378,1770768440608,998.64,0.00010441,2]
[405082379,1770768440819,998.64,0.00010795,2]
[405082380,1770768441351,998.64,0.00011149,2]
[405082381,1770768441456,998.64,0.00011503,2]
[405082382,1770768441508,998.64,0.00011857,2]
[405082401,1770768632247,-250.0,0.0001221,2]
[405082403,1770768632257,-998.64,0.0001221,2]
[405082405,1770768632266,-998.64,0.00012564,2]
[405082406,1770768632277,-297.72000032,0.00012818,2]
[405082407,1770768632302,-14.77644862,0.00012818,2]
[405082408,1770768632312,-998.64,0.00012918,2]
[405082409,1770768632327,-998.64,0.00013272,2]
[405082410,1770768632337,-998.64,0.00013626,2]
[405082411,1770768632349,-182.53119123,0.00013875,2]
[405082412,1770768632359,-998.64,0.0001398,2]
[405082413,1770768632368,-998.64,0.00014334,2]
[405082414,1770768632379,-250.0,0.00014438,2]
[405082415,1770768632389,-998.64,0.00014688,2]
[405082416,1770768632399,-312.49644894,0.0001473,2]
[405082417,1770768632410,-250.0,0.00014957,2]
[405082418,1770768632420,-250.0,0.00015,2]
[405082419,1770768632430,-998.64,0.00015042,2]
[405082420,1770768632440,-3240.0,0.00015136,2]
[405082421,1770768632451,-250.0,0.00015263,2]
[405082422,1770768632460,-500.0,0.00015373,2]
[405082423,1770768632470,-500.0,0.00015373,2]
[405082425,1770768632479,-998.64,0.00015396,2]
[405082426,1770768632489,-998.64,0.0001575,2]
[405082427,1770768632499,-182.53119123,0.00015821,2]
[405082428,1770768632509,-150.99,0.00015921,2]
[405082430,1770768632528,-1000.0,0.00015921,2]
[405082431,1770768632538,-1000.0,0.00015921,2]
[405082434,1770768632548,-998.64,0.00016104,2]
[405082436,1770768632559,-250.0,0.00016134,2]
[405082438,1770768632569,-998.64,0.00016457,2]
[405082440,1770768632578,-439.397,0.00016468,2]
[405082441,1770768632589,-9999.99,0.00016468,2]
[405082444,1770768632599,-300.0,0.00016468,2]
[405082446,1770768632610,-186.02524101,0.00016468,2]
[405082448,1770768632620,-1000.0,0.00016468,2]
[405082450,1770768632630,-1500.0,0.00016468,2]
[405082452,1770768632640,-183.26956193,0.00016642,2]
[405082454,1770768632649,-2532.87146981,0.00016642,2]
[405082456,1770768632659,-630.1531056,0.00016642,2]
[405082458,1770768632669,-217.61538773,0.00016642,2]
[405082460,1770768632678,-3510.50769169,0.00016642,2]
[405082462,1770768632687,-904.06546672,0.00016642,2]
[405082464,1770768632697,-312.49644894,0.00016642,2]
[405082466,1770768632707,-275.1498,0.00016652,2]
[405082468,1770768632718,-114480.41349362,0.00016652,2]
[405082470,1770768632732,-3805.72929264,0.00016652,2]
[405082471,1770768632756,-824.51661962,0.00016652,2]
[405082472,1770768632768,-2386.55070736,0.00016652,2]
[405082473,1770768638372,-14161.79383668,0.00016652,2]
[405082474,1770768638383,-17434.3958712,0.00016652,2]
[405082475,1770768638622,-3119.86958993,0.00016652,2]
[405082523,1770768640832,-173.32339004,0.00016642,2]
[405082524,1770768640843,-3343786.73058895,0.00016652,2]
[405082525,1770768640855,-22246.91540733,0.00016742,2]
[405082526,1770768640867,-87734.86404023,0.00016752,2]
[405082527,1770768640878,-998.64,0.00016811,2]
[405082528,1770768640888,-300.0,0.00017,2]
[405082529,1770768640898,-1920.24240387,0.00017016,2]
[405082530,1770768640908,-3364.32,0.00017442,2]
[405082531,1770768640918,-1883.12747828,0.00017677,2]
[405082532,1770768640927,-481.49288599,0.00017837,2]
[405082533,1770768640937,-150.0,0.00017875,14]
[405082534,1770768640947,-500.0,0.000186,6]
[405082535,1770768640956,-1000.0,0.000187,6]
[405082536,1770768640965,-1600.0,0.000188,6]
[405082537,1770768640975,-2100.0,0.000189,6]
[405082538,1770768640985,-500.0,0.00018947,2]
[405082539,1770768640994,-3793.574643,0.00018985,2]
[405082540,1770768641005,-284.64886571,0.00019053,2]
[405082541,1770768641014,-500.0,0.00019053,2]
[405082542,1770768641024,-500.0,0.00019053,2]
[405082543,1770768641034,-500.0,0.00019053,2]
[405082544,1770768641043,-500.0,0.00019053,2]
[405082545,1770768641053,-500.0,0.00019053,2]
[405082546,1770768641063,-500.0,0.00019053,2]
[405082547,1770768641072,-500.0,0.00019053,2]
[405082548,1770768641082,-500.0,0.00019053,2]
[405082549,1770768641091,-500.0,0.00019053,2]
[405082550,1770768641101,-500.0,0.00019053,2]
[405082551,1770768641111,-500.0,0.00019053,2]
[405082552,1770768641123,-500.0,0.00019053,2]
[405082553,1770768641132,-500.0,0.00019053,2]
[405082554,1770768641142,-497.42873082,0.00019053,2]
[405082555,1770768641151,-500.0,0.00019053,2]
[405082556,1770768641159,-408.8472478,0.00019053,2]
[405082557,1770768641169,-500.0,0.00019053,2]
[405082558,1770768641179,-500.0,0.00019053,2]
[405082559,1770768641188,-500.0,0.00019053,2]
[405082560,1770768641198,-500.0,0.00019053,2]
[405082561,1770768641208,-500.0,0.00019053,2]
[405082562,1770768641217,-500.0,0.00019053,2]
[405082563,1770768641227,-500.0,0.00019053,2]
[405082564,1770768641236,-500.0,0.00019053,2]
[405082565,1770768641246,-500.0,0.00019053,2]
[405082566,1770768641256,-500.0,0.00019053,2]
[405082567,1770768641266,-500.0,0.00019053,2]
[405082568,1770768641276,-450.0,0.00019053,2]
[405082569,1770768641286,-500.0,0.00019053,2]
[405082570,1770768641295,-500.0,0.00019053,2]
[405082571,1770768641304,-500.0,0.00019053,2]
[405082572,1770768641314,-500.0,0.00019053,2]
[405082573,1770768641323,-500.0,0.00019053,2]
[405082574,1770768641333,-500.0,0.00019053,2]
[405082575,1770768641342,-500.0,0.00019053,2]
[405082576,1770768641351,-200.0,0.00019053,2]
[405082577,1770768641363,-1136.30524116,0.00019054,2]
[405082578,1770768641373,-2500.0,0.00019154,2]
[405082579,1770768641382,-845.77725943,0.00019154,2]
[405082580,1770768641392,-160.0,0.00019882,2]
[405082581,1770768641403,-500.0,0.0001995,2]
[405082582,1770768641413,-500.0,0.0001995,2]
[405082583,1770768641422,-500.0,0.0001995,2]
[405082584,1770768641432,-500.0,0.0001995,2]
[405082585,1770768641442,-500.0,0.0001995,2]
[405082586,1770768641451,-275.09317097,0.0001995,2]
[405082587,1770768641461,-500.0,0.0001995,2]
[405082588,1770768641471,-500.0,0.0001995,2]
[405082589,1770768641480,-879.89030493,0.00020273,2]
[405082590,1770768641490,-3895.68487298,0.00020292,2]
[405082591,1770768641499,-881.2106862,0.00020498,2]
[405082592,1770768641509,-1000.0,0.00020498,2]
[405082593,1770768641520,-3510.50769165,0.00020587,2]
[405082594,1770768641528,-507.15083583,0.00021046,2]
[405082595,1770768641537,-3997.79510296,0.000216,2]
[405082596,1770768641546,-1136.3052411,0.00021815,2]
[405082597,1770768641555,-5000.0,0.0002255,2]
[405082598,1770768641810,-832.34,0.000226,7]
[405082599,1770768641821,-4042.0554003,0.00022907,2]
[405082600,1770768641831,-160.0,0.00023,2]
[405082601,1770768641842,-845.7772594,0.00023364,2]
[405082602,1770768641852,-1732.83523088,0.00023566,2]
[405082603,1770768641862,-3364.32,0.00024419,2]
[405082604,1770768641872,-3510.50769165,0.00024532,2]
[405082605,1770768641881,-1136.3052411,0.00024575,2]
[405082606,1770768641891,-1000.0,0.00024658,2]
[405082607,1770768641901,-1781.21333711,0.00025213,2]
[405082608,1770768641911,-4202.01556292,0.00025522,2]
[405082609,1770768641921,-4304.1257929,0.0002683,2]
[405082610,1770768641931,-1136.3052411,0.00027336,2]
[405082611,1770768641941,-150.0,0.00027369,2]
[405082612,1770768641951,-845.7772594,0.00027574,2]
[405082613,1770768641961,-4406.23602288,0.00028137,2]
[405082614,1770768641970,-3510.50769165,0.00028477,2]
[405082615,1770768641980,-1877.96954956,0.00028507,2]
[405082616,1770768641990,-4566.26557394,0.00029445,2]
[405082617,1770768642000,-1136.3052411,0.00030097,2]
[405082618,1770768642010,-1902.7539726,0.00030154,2]
[405082619,1770768642020,-2532.87146979,0.00030498,2]
[405082620,1770768642030,-217.61538771,0.00030498,2]
[405082621,1770768642039,-904.06546671,0.00030498,2]
[405082622,1770768642049,-832.34,0.000313,7]
[405082623,1770768642060,-845.7772594,0.00031784,2]
[405082624,1770768642070,-150.0,0.00031896,2]
[405082625,1770768642080,-712.36,0.00031912,2]
[405082626,1770768642090,-152.0,0.00032044,3]
[405082627,1770768642100,-7446.19,0.00032301,2]
[405082628,1770768642110,-3510.50769165,0.00032421,2]
[405082629,1770768642122,-505.0,0.00032616,2]
[405082630,1770768642130,-900.0,0.00032684,2]
[405082631,1770768642139,-1136.3052411,0.00032857,2]
[405082632,1770768642148,-172.52,0.00032877,15]
[405082633,1770768642157,-523.58,0.000329,14]
[405082634,1770768642166,-15750.61,0.000329,14]
[405082635,1770768642175,-1326.68,0.00033,14]
[405082636,1770768642184,-1108.99,0.00033,2]
[405082637,1770768642193,-500.0,0.00033129,2]
[405082638,1770768642202,-5567.62811687,0.00033367,2]
[405082639,1770768642211,-1974.72576202,0.00033447,2]
[405082640,1770768642219,-505.0,0.00033625,3]
[405082641,1770768642228,-900.0,0.00034054,2]
[405082642,1770768642237,-12208.0,0.00034144,5]
[405082643,1770768642247,-152.0,0.00034164,4]
[405082644,1770768642256,-505.0,0.00034633,4]
[405082645,1770768642266,-5901.41563118,0.00034675,2]
[405082646,1770768642275,-832.34,0.000347,14]
[405082647,1770768642285,-2700.0,0.000349,12]
[405082648,1770768642294,-150.0,0.00034904,2]
[405082649,1770768642303,-218.09745476,0.00035,7]
[405082650,1770768642311,-15750.61,0.00035,14]
[405082651,1770768642319,-2132.86866139,0.00035094,2]
[405082652,1770768642327,-192.48403147,0.00035616,7]
[405082653,1770768642334,-1136.3052411,0.00035618,2]
[405082654,1770768642342,-505.0,0.00035641,5]
[405082655,1770768642349,-523.58,0.000357,14]
[405082656,1770768642357,-2000.0,0.000359,2]
[405082657,1770768642368,-1108.99,0.000359,2]
[405082658,1770768642378,-2000.0,0.000359,2]
[405082659,1770768642388,-6200.98332246,0.00035982,2]
[405082660,1770768642397,-845.7772594,0.00035994,2]
[405082661,1770768642406,-520.17,0.00036,30]
[405082662,1770768642416,-1586.73566616,0.000361,2]
[405082663,1770768642426,-1326.68,0.000362,14]
[405082664,1770768642436,-152.0,0.00036284,5]
[405082665,1770768642445,-3510.50769165,0.00036366,2]
[405082666,1770768642455,-172.52,0.0003653,15]
[405082667,1770768642464,-505.0,0.00036649,6]
[405082668,1770768642474,-150.0,0.00036649,2]
[405082669,1770768642483,-2291.01156077,0.0003674,2]
[405082670,1770768642493,-1586.73566607,0.00037006,2]
[405082671,1770768642503,-15750.61,0.000371,14]
[405082672,1770768642513,-6235.20314549,0.0003729,2]
[405082673,1770768642525,-505.0,0.00037657,8]
[405082674,1770768642534,-1586.73566607,0.00037912,2]
[405082675,1770768642544,-1207.0,0.00037949,2]
[405082676,1770768642553,-918.0,0.00037949,2]
[405082677,1770768642563,-6588.0,0.00037949,2]
[405082678,1770768642573,-5965.0,0.00037949,2]
[405082679,1770768642582,-2448.0,0.00037949,2]
[405082680,1770768642593,-1136.3052411,0.00038379,2]
[405082681,1770768642603,-2449.15446015,0.00038387,2]
[405082682,1770768642611,-832.34,0.000384,14]
[405082683,1770768642622,-1108.99,0.000384,30]
[405082684,1770768642631,-523.58,0.000384,14]
[405082685,1770768642640,-152.0,0.00038404,6]
[405082686,1770768642650,-150.0,0.00038482,2]
[405082687,1770768642661,-6568.9906598,0.00038597,2]
[405082688,1770768642671,-13372.02,0.000386,2]
[405082689,1770768642680,-505.0,0.00038665,9]
[405082690,1770768642690,-1326.68,0.000387,14]
[405082691,1770768642699,-1586.73566607,0.00038819,2]
[405082692,1770768642708,-185.93,0.00038952,14]
[405082693,1770768642718,-195.49253729,0.00039,120]
[405082694,1770768642727,-2000.0,0.000396,2]
[405082695,1770768642736,-1000.0,0.000396,2]
[405082696,1770768642745,-15750.61,0.000396,14]
[405082697,1770768642754,-505.0,0.00039674,10]
[405082698,1770768642764,-1586.73566607,0.00039725,2]
[405082699,1770768642773,-439.398,0.00039851,56]
[405082700,1770768642783,-7455.88490109,0.00039905,2]
[405082701,1770768642793,-500.0,0.0004,45]
[405082702,1770768642802,-12499.99,0.0004,120]
[405082703,1770768642812,-22499.99,0.0004,120]
[405082704,1770768642822,-12500.0,0.0004,120]
[405082705,1770768642831,-22500.0,0.0004,120]
[405082706,1770768642841,-22500.0,0.0004,120]
[405082707,1770768642850,-12500.0,0.0004,120]
[405082708,1770768642860,-1464.67,0.0004,120]
[405082709,1770768642871,-720.93,0.0004,120]
[405082710,1770768642881,-9657.89,0.0004,120]
[405082711,1770768642891,-22500.0,0.0004,120]
[405082712,1770768642900,-12500.0,0.0004,120]
[405082713,1770768642911,-500.0,0.0004,45]
[405082714,1770768642920,-160.0,0.0004,120]
[405082715,1770768642930,-153.0,0.0004,120]
[405082716,1770768642940,-500.0,0.0004,45]
[405082717,1770768642949,-500.0,0.0004,45]
[405082718,1770768642958,-151.0,0.0004,120]
[405082719,1770768642968,-500.0,0.0004,45]
[405082720,1770768642977,-500.0,0.0004,45]
[405082721,1770768642987,-500.0,0.0004,45]
[405082722,1770768642996,-500.0,0.0004,45]
[405082723,1770768643007,-1108.99,0.0004,30]
[405082724,1770768643016,-500.0,0.0004,45]
[405082725,1770768643026,-500.0,0.0004,45]
[405082726,1770768643036,-500.0,0.0004,45]
[405082727,1770768643046,-500.0,0.0004,45]
[405082728,1770768643057,-500.0,0.0004,45]
[405082729,1770768643067,-2000.0,0.0004,120]
[405082730,1770768643076,-300.0,0.00040001,2]
[405082731,1770768643086,-300.0,0.00040001,2]
[405082732,1770768643095,-1079.1570908,0.00040001,2]
[405082733,1770768643104,-300.0,0.00040001,2]
[405082734,1770768643114,-300.0,0.00040001,2]
[405082735,1770768643124,-853.40558214,0.00040001,2]
[405082736,1770768643133,-305.2799278,0.00040001,2]
[405082737,1770768643143,-300.0,0.00040001,2]
[405082738,1770768643152,-882.1295105,0.00040001,2]
[405082739,1770768643162,-300.0,0.00040001,2]
[405082740,1770768643171,-1557.26436786,0.00040001,2]
[405082741,1770768643181,-300.0,0.00040001,2]
[405082742,1770768643190,-300.0,0.00040001,2]
[405082743,1770768643200,-300.0,0.00040001,2]
[405082744,1770768643209,-306.45531392,0.00040001,2]
[405082745,1770768643219,-300.0,0.00040001,2]
[405082746,1770768643229,-300.0,0.00040001,2]
[405082747,1770768643238,-457.56482313,0.00040001,2]
[405082748,1770768643248,-300.0,0.00040001,2]
[405082749,1770768643258,-300.0,0.00040001,2]
[405082750,1770768643267,-300.0,0.00040001,2]
[405082751,1770768643277,-300.0,0.00040001,2]
[405082752,1770768643287,-370.41196631,0.00040001,2]
[405082753,1770768643297,-300.0,0.00040001,2]
[405082754,1770768643306,-300.0,0.00040001,2]
[405082755,1770768643315,-300.0,0.00040001,2]
[405082756,1770768643325,-300.0,0.00040001,2]
[405082757,1770768643335,-300.0,0.00040001,2]
[405082758,1770768643344,-300.0,0.00040001,2]
[405082759,1770768643353,-300.0,0.00040001,2]
[405082760,1770768643363,-300.0,0.00040001,2]
[405082761,1770768643373,-300.0,0.00040001,2]
[405082762,1770768643383,-300.0,0.00040001,2]
[405082763,1770768643392,-300.0,0.00040001,2]
[405082764,1770768643402,-300.0,0.00040001,2]
[405082765,1770768643411,-572.39029516,0.00040001,2]
[405082766,1770768643421,-300.0,0.00040001,2]
[405082767,1770768643431,-300.0,0.00040001,2]
[405082768,1770768643442,-300.0,0.00040001,2]
[405082769,1770768643452,-1079.1570908,0.00040001,2]
[405082770,1770768643463,-300.0,0.00040001,2]
[405082771,1770768643473,-300.0,0.00040001,2]
[405082772,1770768643483,-853.40558214,0.00040001,2]
[405082773,1770768643492,-305.2799278,0.00040001,2]
[405082774,1770768643502,-300.0,0.00040001,2]
[405082775,1770768643512,-882.1295105,0.00040001,2]
[405082776,1770768643526,-300.0,0.00040001,2]
[405082777,1770768643535,-1557.26436786,0.00040001,2]
[405082778,1770768643545,-300.0,0.00040001,2]
[405082779,1770768643555,-300.0,0.00040001,2]
[405082780,1770768643566,-300.0,0.00040001,2]
[405082781,1770768643575,-306.45531392,0.00040001,2]
[405082782,1770768643587,-300.0,0.00040001,2]
[405082783,1770768643597,-300.0,0.00040001,2]
[405082784,1770768643607,-457.56482313,0.00040001,2]
[405082785,1770768643617,-300.0,0.00040001,2]
[405082786,1770768643626,-300.0,0.00040001,2]
[405082787,1770768643636,-300.0,0.00040001,2]
[405082788,1770768643645,-370.41196631,0.00040001,2]
[405082789,1770768643655,-300.0,0.00040001,2]
[405082790,1770768643664,-300.0,0.00040001,2]
[405082791,1770768643675,-300.0,0.00040001,2]
[405082792,1770768643684,-381.19570873,0.00040001,2]
[405082793,1770768643694,-300.0,0.00040001,2]
[405082794,1770768643704,-300.0,0.00040001,2]
[405082795,1770768643714,-300.0,0.00040001,2]
[405082796,1770768643723,-2607.29735952,0.00040034,2]
[405082797,1770768643735,-1296.12,0.00040066,2]
[405082798,1770768643746,-172.52,0.00040183,120]
[405082799,1770768643756,-523.58,0.000402,14]
[405082800,1770768643766,-845.7772594,0.00040204,2]
[405082801,1770768643776,-3510.50769165,0.00040311,28]
[405082802,1770768643786,-12500.0,0.00040375,120]
[405082803,1770768643795,-22500.0,0.00040375,120]
[405082804,1770768643805,-12500.0,0.00040375,120]
[405082805,1770768643816,-12500.0,0.00040375,120]
[405082806,1770768643825,-22500.0,0.00040375,120]
[405082807,1770768643835,-1326.68,0.000404,14]
[405082808,1770768643844,-150.0,0.00040406,2]
[405082809,1770768643854,-500.0,0.000405,45]
[405082810,1770768643863,-500.0,0.000405,45]
[405082811,1770768643876,-500.0,0.000405,45]
[405082812,1770768643886,-500.0,0.000405,45]
[405082813,1770768643896,-500.0,0.000405,45]
[405082814,1770768643905,-500.0,0.000405,45]
[405082815,1770768643914,-500.0,0.000405,45]
[405082816,1770768643923,-500.0,0.000405,45]
[405082817,1770768643933,-500.0,0.000405,45]
[405082818,1770768643942,-500.0,0.000405,45]
[405082819,1770768643951,-500.0,0.000405,45]
[405082820,1770768643961,-500.0,0.000405,45]
[405082821,1770768643970,-256.701042,0.000405,20]
[405082822,1770768643979,-152.0,0.00040523,7]
[405082823,1770768643988,-1000.0,0.00040548,2]
[405082824,1770768643997,-1586.73566607,0.00040631,15]
[405082825,1770768644006,-505.0,0.00040682,11]
[405082826,1770768644015,-15750.61,0.000407,14]
[405082827,1770768644024,-12500.0,0.0004075,120]
[405082828,1770768644034,-22500.0,0.0004075,120]
[405082829,1770768644044,-153.0,0.000409,120]
[405082830,1770768644053,-1244.7475703,0.00040924,30]
[405082831,1770768644062,-1000.0,0.00040924,30]
[405082832,1770768644071,-150.0,0.00040927,2]
[405082833,1770768644081,-1207.0,0.00040949,2]
[405082834,1770768644091,-918.0,0.00040949,2]
[405082835,1770768644100,-6588.0,0.00040949,2]
[405082836,1770768644109,-5965.0,0.00040949,2]
[405082837,1770768644119,-2448.0,0.00040949,2]
[405082838,1770768644128,-525.0,0.00040974,60]
[405082839,1770768644138,-500.0,0.00041,45]
[405082840,1770768644147,-500.0,0.00041,45]
[405082841,1770768644157,-500.0,0.00041,45]
[405082842,1770768644166,-605.42548284,0.00041,30]
[405082843,1770768644176,-500.0,0.00041,45]
[405082844,1770768644186,-500.0,0.00041,45]
[405082845,1770768644195,-500.0,0.00041,45]
[405082846,1770768644205,-500.0,0.00041,45]
[405082847,1770768644214,-500.0,0.00041,45]
[405082848,1770768644224,-500.0,0.00041,45]
[405082849,1770768644233,-500.0,0.00041,45]
[405082850,1770768644243,-500.0,0.00041,45]
[405082851,1770768644252,-500.0,0.00041,45]
[405082852,1770768644261,-150.0,0.00041012,2]
[405082853,1770768644271,-150.0,0.00041012,2]
[405082854,1770768644281,-150.0,0.00041012,2]
[405082855,1770768644291,-3486.0,0.00041012,2]
[405082856,1770768644301,-1287.0,0.00041012,2]
[405082857,1770768644311,-617.0,0.00041012,2]
[405082858,1770768644321,-1273.0,0.00041012,2]
[405082859,1770768644331,-354.9,0.00041068,120]
[405082860,1770768644340,-300.0,0.00041068,22]
[405082861,1770768644350,-246.03725099,0.00041095,120]
[405082862,1770768644359,-1999.0,0.00041095,120]
[405082863,1770768644370,-2007.28622654,0.00041096,10]
[405082864,1770768644379,-1000.0,0.00041096,30]
[405082865,1770768644389,-1000.0,0.00041096,30]
[405082866,1770768644399,-1000.0,0.00041096,30]
[405082867,1770768644408,-1000.0,0.00041096,30]
[405082868,1770768644417,-1000.0,0.00041096,30]
[405082869,1770768644427,-1000.0,0.00041096,30]
[405082870,1770768644436,-1000.0,0.00041096,30]
[405082871,1770768644445,-1000.0,0.00041096,30]
[405082872,1770768644455,-1000.0,0.00041096,30]
[405082873,1770768644464,-1000.0,0.00041096,30]
[405082874,1770768644473,-1000.0,0.00041096,30]
[405082875,1770768644483,-1000.0,0.00041096,30]
[405082876,1770768644492,-1000.0,0.00041096,30]
[405082877,1770768644501,-1000.0,0.00041096,30]
[405082878,1770768644511,-1000.0,0.00041096,30]
[405082879,1770768644524,-1000.0,0.00041096,30]
[405082880,1770768644533,-1000.0,0.00041096,30]
[405082881,1770768644543,-1000.0,0.00041096,30]
[405082882,1770768644552,-1000.0,0.00041096,30]
[405082883,1770768644563,-1000.0,0.00041096,30]
[405082884,1770768644573,-1000.0,0.00041096,30]
[405082885,1770768644582,-1000.0,0.00041096,30]
[405082886,1770768644594,-1000.0,0.00041096,30]
[405082887,1770768644604,-1000.0,0.00041096,30]
[405082888,1770768644614,-1000.0,0.00041096,30]
[405082889,1770768644625,-1000.0,0.00041096,30]
[405082890,1770768644634,-1000.0,0.00041096,30]
[405082891,1770768644643,-1000.0,0.00041096,30]
[405082892,1770768644653,-1000.0,0.00041096,30]
[405082893,1770768644663,-1000.0,0.00041096,30]
[405082894,1770768644672,-1000.0,0.00041096,30]
[405082895,1770768644681,-1000.0,0.00041096,30]
[405082896,1770768644691,-1000.0,0.00041096,30]
[405082897,1770768644701,-1000.0,0.00041096,30]
[405082898,1770768644710,-1000.0,0.00041096,30]
[405082899,1770768644720,-1000.0,0.00041096,30]
[405082900,1770768644729,-1000.0,0.00041096,30]
[405082901,1770768644738,-1000.0,0.00041096,30]
[405082902,1770768644748,-1000.0,0.00041096,30]
[405082903,1770768644757,-1000.0,0.00041096,30]
[405082904,1770768644766,-1000.0,0.00041096,30]
[405082905,1770768644775,-1000.0,0.00041096,30]
[405082906,1770768644786,-1000.0,0.00041096,30]
[405082907,1770768644795,-1000.0,0.00041096,30]
[405082908,1770768644805,-1000.0,0.00041096,30]
[405082909,1770768644815,-1000.0,0.00041096,30]
[405082910,1770768644824,-1000.0,0.00041096,30]
[405082911,1770768644833,-1000.0,0.00041096,30]
[405082912,1770768644843,-1000.0,0.00041096,30]
[405082913,1770768644852,-1000.0,0.00041096,30]
[405082914,1770768644862,-681.0,0.00041096,30]
[405082915,1770768644872,-886.0,0.00041096,120]
[405082916,1770768644883,-160.0,0.00041096,30]
[405082917,1770768644893,-500.0,0.00041096,120]
[405082918,1770768644902,-500.0,0.00041096,60]
[405082919,1770768644912,-151.0,0.000411,120]
[405082920,1770768644921,-22500.0,0.00041125,120]
[405082921,1770768644931,-7866.64,0.00041125,120]
[405082922,1770768644941,-1136.3052411,0.00041139,15]
[405082923,1770768644950,-500.0,0.00041151,60]
[405082924,1770768644960,-500.0,0.00041206,60]
[405082925,1770768644970,-8359.91124461,0.00041212,2]
[405082926,1770768644980,-507.42899651,0.0004126,60]
[405082927,1770768644990,-5008.15573244,0.00041327,4]
[405082928,1770768644999,-5000.0,0.00041327,5]
[405082929,1770768645009,-5000.0,0.00041327,3]
[405082930,1770768645018,-4395.2823527,0.00041327,2]
[405082931,1770768645315,-344.445,0.00041327,2]
[405082932,1770768646201,-1038.39988,0.00016368,2]
[405082933,1770768646218,-294193.51897608,0.00016368,2]
[405082934,1770768646230,-4335.26902133,0.00016368,2]
[405082935,1770768646346,-9095.23712571,0.00016368,2]
[405082936,1770768646488,-575.74865264,0.00016368,2]
[405082937,1770768646499,-275.99999997,0.00016368,2]
[405082938,1770768646631,-3537.76504554,0.00016368,2]
[405082955,1770768857307,234.0,0.00035589,120]
[405083046,1770769445570,175.13,0.00012239,2]
[405083071,1770769548556,5938.81,0.00012527,2]
[405083101,1770769645869,151.0,0.0003561,31]
[405083118,1770769706056,151.0,0.0003561,31]
[405083156,1770769831525,-403.32000001,0.000146,5]
[405083181,1770769837569,-96.67999999,0.000146,5]
[405083182,1770769837578,-205.70540098,0.000147,5]
[405083183,1770769837699,-794.29459902,0.000147,5]
[405083184,1770769837709,-1600.0,0.000148,5]
[405083185,1770769837720,-2100.0,0.000149,5]
[405083186,1770769837730,-250.0,0.00015,2]
[405083187,1770769837740,-1069.0,0.00015166,2]
[405083188,1770769837751,-1248.06872,0.00015167,2]
[405083189,1770769837760,-2507.51758269,0.00015167,2]
[405083190,1770769837770,-3989.42388345,0.00015167,2]
[405083191,1770769837781,-247.91592291,0.00015167,2]
[405083192,1770769837790,-173.32339004,0.00015167,2]
[405083193,1770769837803,-705.39016852,0.00015167,2]
[405083194,1770769837812,-3601.34338382,0.00015167,2]
[405083195,1770769837824,-5182.17,0.0001523,2]
[405083196,1770769837833,-22246.91540733,0.00015255,2]
[405083197,1770769837844,-500.0,0.00015264,2]